bitfinex/quotes_BTCUSD_20250602
["timestamp","ask_amount","ask_price","bid_price","bid_amount"]
[1748861120765,0.05312198,104340.0,104330.0,0.30530256]
[1748861120980,0.05312198,104340.0,104330.0,0.2963245]
[1748861121200,0.06270538,104340.0,104330.0,0.30530256]
[1748861121525,0.06270538,104340.0,104330.0,0.30530303]
[1748861121886,0.05312198,104340.0,104330.0,0.30530303]
[1748861122294,0.05312198,104340.0,104330.0,0.2963245]
[1748861122508,0.05312198,104340.0,104330.0,0.30530303]
[1748861122698,0.05312198,104340.0,104330.0,0.29632801]
[1748861123319,0.05312198,104340.0,104330.0,0.30530654]
[1748861123459,0.05312198,104340.0,104330.0,0.29632801]
[1748861124039,0.05312198,104340.0,104330.0,0.30530654]
[1748861124241,0.05312198,104340.0,104330.0,0.29632801]
[1748861124504,0.06270538,104340.0,104330.0,0.29632801]
[1748861125074,0.08187265,104340.0,104330.0,0.30530654]
[1748861125282,0.08187265,104340.0,104330.0,0.29632801]
[1748861125675,0.08187265,104340.0,104330.0,0.31428507]
[1748861125878,0.08187265,104340.0,104330.0,0.30530654]
[1748861126279,0.08187256,104340.0,104330.0,0.31428507]
[1748861126537,0.08187256,104340.0,104330.0,0.29382491]
[1748861126674,0.08187256,104340.0,104330.0,0.30530929]
[1748861126884,0.08187256,104340.0,104330.0,0.31428782]
[1748861127088,0.08187256,104340.0,104330.0,0.30530929]
[1748861127689,0.07228888,104340.0,104330.0,0.30530929]
[1748861127893,0.06270538,104340.0,104330.0,0.30530929]
[1748861128103,0.07228897,104340.0,104330.0,0.31428782]
[1748861128374,0.06270538,104340.0,104330.0,0.30530929]
[1748861128573,0.07228897,104340.0,104330.0,0.30530929]
[1748861129181,0.07228897,104340.0,104330.0,0.31428782]
[1748861129381,0.07228897,104340.0,104330.0,0.30530929]
[1748861129599,0.06270538,104340.0,104330.0,0.30530929]
[1748861129989,0.07228897,104340.0,104330.0,0.31428782]
[1748861130412,0.07228897,104340.0,104330.0,0.30280344]
[1748861130655,0.06270538,104340.0,104330.0,0.30531634]
[1748861131483,0.07228897,104340.0,104330.0,0.30531634]
[1748861131917,0.07228897,104340.0,104330.0,0.31429528]
[1748861132363,0.07228897,104340.0,104330.0,0.30531634]
[1748861132913,0.07228897,104340.0,104330.0,0.3142957]
[1748861133317,0.07228897,104340.0,104330.0,0.31429628]
[1748861133516,0.07228897,104340.0,104330.0,0.30531634]
[1748861133871,0.07228897,104340.0,104330.0,0.31429628]
[1748861134155,0.07228897,104340.0,104330.0,0.71842604]
[1748861134330,0.06270538,104340.0,104330.0,0.31429628]
[1748861134542,0.07228897,104340.0,104330.0,0.31430074]
[1748861134944,0.06270538,104340.0,104330.0,0.3053208]
[1748861135106,0.07228897,104340.0,104330.0,0.31430257]
[1748861135709,0.07228897,104340.0,104330.0,0.3053208]
[1748861135947,0.06270538,104340.0,104330.0,0.31430264]
[1748861136536,0.06270538,104340.0,104330.0,0.31430273]
[1748861136739,0.07228888,104340.0,104330.0,0.3143037]
[1748861136869,0.07228888,104340.0,104330.0,0.30532177]
[1748861137274,0.08187247,104340.0,104330.0,0.30532177]
[1748861137495,0.07228888,104340.0,104330.0,0.3143037]
[1748861137672,0.07228888,104340.0,104330.0,0.30532177]
[1748861138081,0.07228888,104340.0,104330.0,0.31430375]
[1748861138401,0.07228888,104340.0,104330.0,0.30280689]
[1748861138600,0.07228888,104340.0,104330.0,0.30532249]
[1748861138806,0.07228888,104340.0,104330.0,0.31430468]
[1748861139205,0.08187247,104340.0,104330.0,0.30532249]
[1748861139406,0.08187247,104340.0,104330.0,0.31430473]
[1748861139608,0.08187302,104340.0,104330.0,0.30532249]
[1748861139765,0.4668357,104340.0,104330.0,0.30532249]
[1748861140172,0.5689306,104340.0,104330.0,0.29573817]
[1748861140374,0.57851446,104340.0,104330.0,0.30532249]
[1748861140636,0.7510286,104340.0,104330.0,0.28615376]
[1748861140810,0.76061256,104340.0,104330.0,0.29573817]
[1748861141021,0.4764203,104340.0,104330.0,0.28424059]
[1748861141214,0.48600435,104340.0,104330.0,0.28424059]
[1748861141400,0.67768539,104340.0,104330.0,0.28424059]
[1748861141600,0.6681018,104340.0,104330.0,0.29322352]
[1748861141802,0.6681018,104340.0,104330.0,0.28424059]
[1748861143257,0.6681018,104340.0,104330.0,0.30220698]
[1748861143467,0.6681018,104340.0,104330.0,0.28424059]
[1748861144428,0.6681018,104340.0,104330.0,0.311191]
[1748861144839,0.6681018,104340.0,104330.0,0.28424059]
[1748861145045,0.6681018,104340.0,104330.0,0.30220755]
[1748861145249,0.6681018,104340.0,104330.0,0.31119103]
[1748861146840,0.65851812,104340.0,104330.0,0.27465618]
[1748861147058,0.65851812,104340.0,104330.0,0.30159511]
[1748861147265,0.65851812,104340.0,104330.0,0.27465618]
[1748861147471,0.65851812,104340.0,104330.0,0.30159417]
[1748861147674,0.65851812,104340.0,104330.0,0.29261484]
[1748861147878,0.69222533,104340.0,104330.0,0.27465618]
[1748861148076,0.69222533,104340.0,104330.0,0.29261483]
[1748861148288,0.69222533,104340.0,104330.0,0.27465618]
[1748861148542,0.69222533,104340.0,104330.0,0.30159418]
[1748861148723,0.69222533,104340.0,104330.0,0.27465618]
[1748861148898,0.69222533,104340.0,104330.0,0.30219936]
[1748861149103,0.69222533,104340.0,104330.0,0.30219933]
[1748861149303,0.68264147,104340.0,104330.0,0.27465636]
[1748861149484,0.68264147,104340.0,104330.0,0.30219974]
[1748861149687,0.68264147,104340.0,104330.0,0.28424105]
[1748861149888,0.68264147,104340.0,104330.0,0.30219974]
[1748861150074,0.68264147,104340.0,104330.0,0.28424105]
[1748861150720,0.68264147,104340.0,104330.0,0.29322037]
[1748861151136,0.68264147,104340.0,104330.0,0.28424105]
[1748861151948,0.67305751,104340.0,104330.0,0.28363528]
[1748861152155,0.67305751,104340.0,104330.0,0.30159314]
[1748861152290,0.67305751,104340.0,104330.0,0.30159166]
[1748861152494,0.67305751,104340.0,104330.0,0.31117337]
[1748861152796,0.6393503,104340.0,104330.0,0.29321849]
[1748861152987,0.6393503,104340.0,104330.0,0.28424105]
[1748861153375,0.6393503,104340.0,104330.0,0.2932185]
[1748861153615,0.6393503,104340.0,104330.0,0.31117341]
[1748861153847,0.6393503,104340.0,104330.0,0.31790649]
[1748861153979,0.6393503,104340.0,104330.0,0.31117341]
[1748861154186,0.6393503,104340.0,104330.0,0.31790649]
[1748861154386,0.6393503,104340.0,104330.0,0.32748877]
[1748861154680,0.6393503,104340.0,104330.0,0.29995059]
[1748861154879,0.6393503,104340.0,104330.0,0.29382565]
[1748861155064,0.6393503,104340.0,104330.0,0.3005583]
[1748861157645,0.67768539,104340.0,104330.0,0.32748769]
[1748861157758,0.67768539,104340.0,104330.0,0.30953421]
[1748861157962,0.67768539,104340.0,104330.0,0.32748769]
[1748861158363,0.67768539,104340.0,104330.0,0.32748771]
[1748861158559,0.67768539,104340.0,104330.0,0.31851103]
[1748861158768,0.67768539,104340.0,104330.0,0.29382492]
[1748861159019,0.67768539,104340.0,104330.0,0.3274878]
[1748861159786,0.48600435,104340.0,104330.0,0.33707212]
[1748861160001,0.4764203,104340.0,104330.0,0.33707216]
[1748861160408,0.66810134,104340.0,104330.0,0.3213628]
[1748861160622,0.4764203,104340.0,104330.0,0.33707214]
[1748861161130,0.4764203,104340.0,104330.0,0.33707212]
[1748861161761,0.26397084,104340.0,104330.0,0.29873456]
[1748861161976,0.75102906,104340.0,104330.0,0.32627315]
[1748861162180,0.75102906,104340.0,104330.0,0.31790511]
[1748861162398,0.75102906,104340.0,104330.0,0.31117228]
[1748861162590,0.75102906,104340.0,104330.0,0.31790511]
[1748861162804,0.75102906,104340.0,104330.0,0.31790515]
[1748861163001,0.75102906,104340.0,104330.0,0.29873586]
[1748861163309,0.75102906,104340.0,104330.0,0.28424115]
[1748861163512,0.75102906,104340.0,104330.0,0.31790535]
[1748861163715,0.75102906,104340.0,104330.0,0.3179058]
[1748861164151,0.75102906,104340.0,104330.0,0.31117286]
[1748861164366,0.65851784,104340.0,104330.0,0.32075742]
[1748861164593,0.65851784,104340.0,104330.0,0.32075743]
[1748861164767,0.65851784,104340.0,104330.0,0.30055867]
[1748861164953,0.65851784,104340.0,104330.0,0.3095359]
[1748861165139,0.65851784,104340.0,104330.0,0.32749036]
[1748861165503,0.75102906,104340.0,104330.0,0.32749069]
[1748861165851,0.75102906,104340.0,104330.0,0.32749311]
[1748861166051,0.75102906,104340.0,104330.0,0.30953718]
[1748861166295,0.75102906,104340.0,104330.0,0.32749703]
[1748861166505,0.75102906,104340.0,104330.0,0.29382575]
[1748861166904,0.75102906,104340.0,104330.0,0.30280474]
[1748861167106,0.75102906,104340.0,104330.0,0.29382575]
[1748861167326,0.75102906,104340.0,104330.0,0.30055999]
[1748861167532,0.75102906,104340.0,104330.0,0.29382575]
[1748861167891,0.66810189,104340.0,104330.0,0.30341026]
[1748861168108,0.65851784,104340.0,104330.0,0.3034097]
[1748861168302,0.65851784,104340.0,104330.0,0.33708381]
[1748861168549,0.4572523,104340.0,104330.0,0.33708335]
[1748861168712,0.47641938,104340.0,104330.0,0.33708335]
[1748861168912,0.05312207,104340.0,104330.0,0.35504763]
[1748861169163,0.06270575,104340.0,104330.0,0.35980885]
[1748861169296,0.06270575,104340.0,104330.0,0.35980872]
[1748861169504,0.06270575,104340.0,104330.0,0.36655958]
[1748861169749,0.46683551,104340.0,104330.0,0.36656113]
[1748861169988,0.47641937,104340.0,104330.0,0.36656113]
[1748861170179,0.47641937,104340.0,104330.0,0.36656001]
[1748861170502,0.47641937,104340.0,104330.0,0.36655918]
[1748861170918,0.47641937,104340.0,104330.0,0.36655917]
[1748861171326,0.47641937,104340.0,104330.0,0.36655903]
[1748861171917,0.47641937,104340.0,104330.0,0.33286865]
[1748861172126,0.47641937,104340.0,104330.0,0.36655887]
[1748861172339,0.47641937,104340.0,104330.0,0.33286865]
[1748861172558,0.47641937,104340.0,104330.0,0.36655887]
[1748861174085,0.47641937,104340.0,104330.0,0.36655883]
[1748861174423,0.47641937,104340.0,104330.0,0.3418527]
[1748861174667,0.47641937,104340.0,104330.0,0.36655881]
[1748861174883,0.46683551,104340.0,104330.0,0.36655881]
[1748861175102,0.47641937,104340.0,104330.0,0.33286865]
[1748861175298,0.07228961,104340.0,104330.0,0.36655877]
[1748861175502,0.47641937,104340.0,104330.0,0.36655877]
[1748861176280,0.47641937,104340.0,104330.0,0.34185266]
[1748861176501,0.47641928,104340.0,104330.0,0.33286865]
[1748861176704,0.47641919,104340.0,104330.0,0.33287013]
[1748861176922,0.47641919,104340.0,104330.0,0.34859203]
[1748861177119,0.47641919,104340.0,104330.0,0.33287013]
[1748861177298,0.47641919,104340.0,104330.0,0.35083796]
[1748861177454,0.48600305,104340.0,104330.0,0.35982184]
[1748861177663,0.48600305,104340.0,104330.0,0.35083796]
[1748861177862,0.48600305,104340.0,104330.0,0.36880571]
[1748861178068,0.47641919,104340.0,104330.0,0.36880571]
[1748861178386,0.47641919,104340.0,104330.0,0.35083796]
[1748861178553,0.47641919,104340.0,104330.0,0.37778958]
[1748861178751,0.48600305,104340.0,104330.0,0.36655973]
[1748861178951,0.48600305,104340.0,104330.0,0.35083796]
[1748861179202,0.48600305,104340.0,104330.0,0.37778957]
[1748861179354,0.48600305,104340.0,104330.0,0.35757586]
[1748861179553,0.48600305,104340.0,104330.0,0.35083796]
[1748861180403,0.47641919,104340.0,104330.0,0.35083796]
[1748861180864,0.47641919,104340.0,104330.0,0.36880504]
[1748861181090,0.47641919,104340.0,104330.0,0.35757521]
[1748861181343,0.48600305,104340.0,104330.0,0.35083731]
[1748861181566,0.48600305,104340.0,104330.0,0.35982118]
[1748861182239,0.48600305,104340.0,104330.0,0.35083731]
[1748861182733,0.48600305,104340.0,104330.0,0.36880501]
[1748861182935,0.48600305,104340.0,104330.0,0.37778886]
[1748861183368,0.48600305,104340.0,104330.0,0.36880501]
[1748861183798,0.48600305,104340.0,104330.0,0.40249445]
[1748861184004,0.47641919,104340.0,104330.0,0.37778886]
[1748861184207,0.48600305,104340.0,104330.0,0.36880501]
[1748861184409,0.46683542,104340.0,104330.0,0.4024944]
[1748861184615,0.47641919,104340.0,104330.0,0.39575652]
[1748861184827,0.46683542,104340.0,104330.0,0.40249338]
[1748861185029,0.47641928,104340.0,104330.0,0.40249338]
[1748861185600,0.47641928,104340.0,104330.0,0.37778839]
[1748861185830,0.47641928,104340.0,104330.0,0.40249338]
[1748861186083,0.47641919,104340.0,104330.0,0.40249313]
[1748861186300,0.47641919,104340.0,104330.0,0.40249292]
[1748861186512,0.48600305,104340.0,104330.0,0.40249281]
[1748861187099,0.48600305,104340.0,104330.0,0.37554233]
[1748861187239,0.48600305,104340.0,104330.0,0.38677163]
[1748861187445,0.47641919,104340.0,104330.0,0.37554233]
[1748861187649,0.47641919,104340.0,104330.0,0.3935092]
[1748861187860,0.47641919,104340.0,104330.0,0.37554233]
[1748861188717,0.47641919,104340.0,104330.0,0.37554223]
[1748861188892,0.47641919,104340.0,104330.0,0.39350907]
[1748861189105,0.47641919,104340.0,104330.0,0.38227979]
[1748861189422,0.47641919,104340.0,104330.0,0.37554223]
[1748861189620,0.47641919,104340.0,104330.0,0.40923005]
[1748861189827,0.47641919,104340.0,104330.0,0.39350907]
[1748861190203,0.48600305,104340.0,104330.0,0.39350907]
[1748861190793,0.48600305,104340.0,104330.0,0.4114759]
[1748861191210,0.48600305,104340.0,104330.0,0.42045932]
[1748861191489,0.48600305,104340.0,104330.0,0.4114759]
[1748861191682,0.48600305,104340.0,104330.0,0.41821346]
[1748861191861,0.48600305,104340.0,104330.0,0.4114759]
[1748861192068,0.57851427,104340.0,104330.0,0.4114759]
[1748861192266,0.48600305,104340.0,104330.0,0.4114759]
[1748861192442,0.48600305,104340.0,104330.0,0.42045932]
[1748861192654,0.48600305,104340.0,104330.0,0.41147599]
[1748861192877,0.48600305,104340.0,104330.0,0.42944283]
[1748861193058,0.48600305,104340.0,104330.0,0.44740967]
[1748861193281,0.48600305,104340.0,104330.0,0.44740966]
[1748861193637,0.48600305,104340.0,104330.0,0.44741024]
[1748861193835,0.48600305,104340.0,104330.0,0.43842653]
[1748861194492,0.48600305,104340.0,104330.0,0.47211544]
[1748861194995,0.48600305,104340.0,104330.0,0.44516431]
[1748861195197,0.67768483,104340.0,104330.0,0.47211544]
[1748861195423,0.67768483,104340.0,104330.0,0.43842653]
[1748861195570,0.67768483,104340.0,104330.0,0.47211758]
[1748861195772,0.56893105,104340.0,104330.0,0.47211758]
[1748861196125,0.66810087,104340.0,104330.0,0.45294885]
[1748861196579,0.65851747,104340.0,104330.0,0.43377992]
[1748861196790,0.65851747,104340.0,104330.0,0.44336452]
[1748861197008,0.65851747,104340.0,104330.0,0.45294923]
[1748861197220,0.65851747,104340.0,104330.0,0.45579555]
[1748861197439,0.75102869,104340.0,104330.0,0.42584267]
[1748861197625,0.75102869,104340.0,104330.0,0.42684267]
[1748861197794,0.7414451,104340.0,104330.0,0.38659007]
[1748861197997,0.7414451,104340.0,104330.0,0.39617476]
[1748861198198,0.7404451,104340.0,104330.0,0.39317476]
[1748861198403,0.7414451,104340.0,104330.0,0.39517476]
[1748861198618,0.7414451,104340.0,104330.0,0.42886657]
[1748861199203,0.7414451,104340.0,104330.0,0.42886476]
[1748861199359,0.7414451,104340.0,104330.0,0.41089676]
[1748861199560,0.7414451,104340.0,104330.0,0.42212649]
[1748861199765,0.7414451,104340.0,104330.0,0.42886442]
[1748861200199,0.64893388,104340.0,104330.0,0.42886442]
[1748861200402,0.64893388,104340.0,104330.0,0.42886451]
[1748861200577,0.64893388,104340.0,104330.0,0.41927973]
[1748861200772,0.64893388,104340.0,104330.0,0.41927917]
[1748861201086,0.64893388,104340.0,104330.0,0.40355749]
[1748861201288,0.64893388,104340.0,104330.0,0.41254109]
[1748861201520,0.7414451,104340.0,104330.0,0.42886335]
[1748861201651,0.7414451,104340.0,104330.0,0.43844804]
[1748861202060,0.64893388,104340.0,104330.0,0.42886335]
[1748861202440,0.64893388,104340.0,104330.0,0.42886323]
[1748861202741,0.64893388,104340.0,104330.0,0.42886291]
[1748861203143,0.64893388,104340.0,104330.0,0.42886281]
[1748861203288,0.64893388,104340.0,104330.0,0.42886268]
[1748861204163,0.64893388,104340.0,104330.0,0.39517485]
[1748861204323,0.24480412,104340.0,104330.0,0.43844694]
[1748861204529,0.24480412,104340.0,104330.0,0.40475945]
[1748861204707,0.24480412,104340.0,104330.0,0.43844688]
[1748861204907,0.24480412,104340.0,104330.0,0.43844687]
[1748861205116,0.64893388,104340.0,104330.0,0.43844687]
[1748861205328,0.64893388,104340.0,104330.0,0.43844704]
[1748861205532,0.64893388,104340.0,104330.0,0.43844689]
[1748861205930,0.04353922,104340.0,104330.0,0.84257665]
[1748861206173,0.25438781,104340.0,104330.0,0.44216488]
[1748861206311,0.25438781,104340.0,104330.0,0.46911453]
[1748861206822,0.65851757,104340.0,104330.0,0.46911453]
[1748861206983,0.25438781,104340.0,104330.0,0.46237747]
[1748861207183,0.25438781,104340.0,104330.0,0.44441081]
[1748861207380,0.25438781,104340.0,104330.0,0.43542748]
[1748861207686,0.25438781,104340.0,104330.0,0.44441081]
[1748861207892,0.25438781,104340.0,104330.0,0.43542748]
[1748861208316,0.25438781,104340.0,104330.0,0.4511483]
[1748861208468,0.25438781,104340.0,104330.0,0.43542748]
[1748861208678,0.25438781,104340.0,104330.0,0.44441065]
[1748861208876,0.25438781,104340.0,104330.0,0.43542732]
[1748861209079,0.25438781,104340.0,104330.0,0.44441065]
[1748861209283,0.06270677,104340.0,104330.0,0.4444101]
[1748861209481,0.06270677,104340.0,104330.0,0.44216426]
[1748861209749,0.06270658,104340.0,104330.0,0.43542677]
[1748861209924,0.06270658,104340.0,104330.0,0.48708089]
[1748861210135,0.06270658,104340.0,104330.0,0.4803434]
[1748861210338,0.06270658,104340.0,104330.0,0.45339343]
[1748861210742,0.001,104340.0,104330.0,0.86650651]
[1748861210949,0.001,104340.0,104330.0,0.96236026]
[1748861211111,0.001,104340.0,104330.0,1.00239312]
[1748861211521,0.001,104340.0,104330.0,0.9934109]
[1748861211662,0.001,104340.0,104330.0,1.02035792]
[1748861211861,0.001,104340.0,104330.0,1.02035791]
[1748861212064,0.001,104340.0,104330.0,1.02035789]
[1748861212586,0.001,104340.0,104330.0,1.02035102]
[1748861212792,0.001,104340.0,104330.0,1.00463194]
[1748861213145,0.001,104340.0,104330.0,1.01361427]
[1748861213345,0.001,104340.0,104330.0,1.02259661]
[1748861214201,0.001,104340.0,104330.0,1.00463194]
[1748861214403,0.001,104340.0,104330.0,1.02259661]
[1748861214603,0.001,104340.0,104330.0,1.03157894]
[1748861214791,0.001,104340.0,104330.0,1.00463194]
[1748861214994,0.58806657,104360.0,104350.0,0.20124562]
[1748861215179,0.60535633,104360.0,104350.0,0.22054562]
[1748861215399,0.99215633,104360.0,104350.0,0.28411239]
[1748861215742,0.99215633,104360.0,104350.0,0.25716525]
[1748861215946,0.99215633,104360.0,104350.0,0.28411239]
[1748861216346,0.20122633,104360.0,104350.0,0.28411221]
[1748861216548,0.92004005,104360.0,104350.0,0.29369479]
[1748861216956,0.92004005,104360.0,104350.0,0.29367836]
[1748861217160,0.9455133,104360.0,104350.0,0.26674149]
[1748861217349,0.9455133,104360.0,104350.0,0.25715891]
[1748861217551,0.65957468,104360.0,104350.0,0.26001078]
[1748861217784,1.04637468,104360.0,104350.0,0.26674135]
[1748861217991,1.04837468,104360.0,104350.0,0.25940237]
[1748861218320,1.04837468,104360.0,104350.0,0.26837645]
[1748861218517,1.04837468,104360.0,104350.0,0.25715885]
[1748861218724,1.04537468,104360.0,104350.0,0.28408109]
[1748861218882,1.04537468,104360.0,104350.0,0.29466367]
[1748861219084,1.04637468,104360.0,104350.0,0.29466367]
[1748861219287,1.04637468,104360.0,104350.0,0.26773898]
[1748861219738,1.04637468,104360.0,104350.0,0.28568062]
[1748861219971,1.04637468,104360.0,104350.0,0.29465144]
[1748861220699,0.8547302,104360.0,104350.0,0.30423393]
[1748861221112,0.8547302,104360.0,104350.0,0.69939287]
[1748861221113,0.02547325,104360.0,104350.0,0.69939287]
[1748861221328,0.001,104360.0,104350.0,1.54833975]
[1748861221534,0.001,104360.0,104350.0,1.68357517]
[1748861221811,0.001,104360.0,104350.0,1.68742059]
[1748861222013,0.001,104360.0,104350.0,1.68642015]
[1748861222218,0.001,104360.0,104350.0,2.06848161]
[1748861222423,0.03569532,104370.0,104360.0,0.59968983]
[1748861222632,0.03569532,104370.0,104360.0,1.8443234]
[1748861222835,0.03569532,104370.0,104360.0,1.84427651]
[1748861223037,0.03569532,104370.0,104360.0,1.84425892]
[1748861223246,0.03569532,104370.0,104360.0,1.84423544]
[1748861223862,0.03569532,104370.0,104360.0,1.86870728]
[1748861224069,0.03669532,104370.0,104360.0,1.87269774]
[1748861224306,0.03669532,104370.0,104360.0,1.87267149]
[1748861224517,0.03669532,104370.0,104360.0,1.87565753]
[1748861225152,0.03669532,104370.0,104360.0,1.8909885]
[1748861225381,0.03669532,104370.0,104360.0,1.87565735]
[1748861225786,0.03669532,104370.0,104360.0,1.87565732]
[1748861226000,0.03669532,104370.0,104360.0,1.85778134]
[1748861226199,0.03669532,104370.0,104360.0,1.87563578]
[1748861226402,0.03669532,104370.0,104360.0,1.87563298]
[1748861226622,0.03669532,104370.0,104360.0,1.86001035]
[1748861226827,0.03669532,104370.0,104360.0,1.87562111]
[1748861227043,0.03669532,104370.0,104360.0,1.85114923]
[1748861227253,0.03669532,104370.0,104360.0,1.85114928]
[1748861227468,0.03669532,104370.0,104360.0,0.71397789]
[1748861227674,0.67077417,104370.0,104360.0,0.24752642]
[1748861227892,0.55484671,104370.0,104360.0,0.25747158]
[1748861228092,0.47914823,104370.0,104360.0,0.25747158]
[1748861228543,0.47914823,104370.0,104360.0,0.29317596]
[1748861231030,0.05585644,104370.0,104360.0,0.83101486]
[1748861231181,0.05585644,104370.0,104360.0,0.46036291]
[1748861231182,0.01058047,104370.0,104360.0,0.46036291]
[1748861231555,0.001,104370.0,104360.0,0.48044956]
[1748861231801,0.001,104370.0,104360.0,0.46259477]
[1748861232035,0.001,104370.0,104360.0,0.4804493]
[1748861232265,0.001,104370.0,104360.0,0.50499847]
[1748861232490,0.001,104370.0,104360.0,0.48937605]
[1748861232717,0.001,104370.0,104360.0,0.48044896]
[1748861232935,0.001,104370.0,104360.0,0.48714428]
[1748861233182,0.001,104370.0,104360.0,0.49830315]
[1748861233391,0.001,104370.0,104360.0,0.48044896]
[1748861233618,0.001,104370.0,104360.0,0.88433117]
[1748861234030,0.001,104370.0,104360.0,0.49830408]
[1748861234250,0.001,104370.0,104360.0,0.48937652]
[1748861234724,0.001,104370.0,104360.0,0.52285494]
[1748861235141,0.001,104370.0,104360.0,0.52286943]
[1748861235550,0.001,104370.0,104360.0,0.52287174]
[1748861235760,0.001,104370.0,104360.0,0.52287172]
[1748861236681,0.001,104370.0,104360.0,0.52287412]
[1748861236962,0.001,104370.0,104360.0,0.52287592]
[1748861237268,0.001,104370.0,104360.0,0.50502066]
[1748861237477,0.01058047,104370.0,104360.0,0.49831603]
[1748861237680,0.001,104370.0,104360.0,0.52289969]
[1748861238824,0.001,104370.0,104360.0,0.51396649]
[1748861239063,0.001,104370.0,104360.0,0.48937652]
[1748861239293,0.001,104370.0,104360.0,0.49831833]
[1748861239534,0.001,104370.0,104360.0,0.53408562]
[1748861239740,0.001,104370.0,104360.0,0.52514377]
[1748861240026,0.001,104370.0,104360.0,0.50726016]
[1748861240929,0.03932297,104370.0,104360.0,0.37984766]
[1748861241138,0.03932279,104370.0,104360.0,0.37090586]
[1748861241350,0.03932279,104370.0,104360.0,0.40729013]
[1748861241554,0.001,104370.0,104360.0,0.50506016]
[1748861241778,0.01058047,104370.0,104360.0,0.54753469]
[1748861241981,0.01058047,104370.0,104360.0,0.52965072]
[1748861242220,0.01058047,104370.0,104360.0,0.5318862]
[1748861242416,0.01058047,104370.0,104360.0,0.54753464]
[1748861242640,0.02016112,104370.0,104360.0,0.55871207]
[1748861242853,0.02016112,104370.0,104360.0,0.54082818]
[1748861243028,0.01058047,104370.0,104360.0,0.55871207]
[1748861243244,0.01058047,104370.0,104360.0,0.54082818]
[1748861243782,0.02016112,104370.0,104360.0,0.54753464]
[1748861243977,0.02974195,104370.0,104360.0,0.54082818]
[1748861244188,0.02016112,104370.0,104360.0,0.54082818]
[1748861244430,0.02016112,104370.0,104360.0,0.56765401]
[1748861244633,0.02016112,104370.0,104360.0,0.57659597]
[1748861244835,0.02016112,104370.0,104360.0,0.55871207]
[1748861245079,0.02016112,104370.0,104360.0,0.57659596]
[1748861245279,0.02016112,104370.0,104360.0,0.56541852]
[1748861245485,0.02016112,104370.0,104360.0,0.57659595]
[1748861245691,0.02016112,104370.0,104360.0,0.55871207]
[1748861246030,0.02016112,104370.0,104360.0,0.57659595]
[1748861246234,0.02016112,104370.0,104360.0,0.59224633]
[1748861246437,0.02016112,104370.0,104360.0,0.59225166]
[1748861246637,0.02016112,104370.0,104360.0,0.59226247]
[1748861247959,0.02016112,104370.0,104360.0,0.59226929]
[1748861248161,0.02016112,104370.0,104360.0,0.59226924]
[1748861248389,0.02016112,104370.0,104360.0,0.60372927]
[1748861248588,0.02016112,104370.0,104360.0,0.59226927]
[1748861248911,0.02016112,104370.0,104360.0,0.59226928]
[1748861249106,0.02016112,104370.0,104360.0,0.59227399]
[1748861249313,0.02016112,104370.0,104360.0,0.60373399]
[1748861249513,0.02016112,104370.0,104360.0,0.60373818]
[1748861249718,0.02016112,104370.0,104360.0,0.60375088]
[1748861249921,0.02016112,104370.0,104360.0,0.60376677]
[1748861250121,0.02016112,104370.0,104360.0,0.57914232]
[1748861250320,0.02016112,104370.0,104360.0,0.59481243]
[1748861250520,0.02016112,104370.0,104360.0,0.60600536]
[1748861250921,0.02016112,104370.0,104360.0,0.64855468]
[1748861251161,0.01058047,104370.0,104360.0,0.62391405]
[1748861251362,0.02016112,104370.0,104360.0,0.62391405]
[1748861251548,0.02016112,104370.0,104360.0,0.62391424]
[1748861251722,0.02016112,104370.0,104360.0,0.63063603]
[1748861251991,0.02016112,104370.0,104360.0,0.62391424]
[1748861252169,0.02016112,104370.0,104360.0,0.63287663]
[1748861252376,0.02016112,104370.0,104360.0,0.64184184]
[1748861252582,0.02016112,104370.0,104360.0,0.65752849]
[1748861252786,0.02016112,104370.0,104360.0,0.65752852]
[1748861252986,0.02016112,104370.0,104360.0,0.65753194]
[1748861253227,0.02016112,104370.0,104360.0,0.63063778]
[1748861253465,0.001,104370.0,104360.0,0.62391424]
[1748861253886,0.01058056,104370.0,104360.0,0.64857496]
[1748861254100,0.01058056,104370.0,104360.0,0.62391424]
[1748861254313,0.01058056,104370.0,104360.0,0.62391701]
[1748861254535,0.0201613,104370.0,104360.0,0.62391701]
[1748861254983,0.01058056,104370.0,104360.0,0.62391701]
[1748861255192,0.01058056,104370.0,104360.0,0.63037323]
[1748861255394,0.01058056,104370.0,104360.0,0.6239188]
[1748861255605,0.0201613,104370.0,104360.0,0.65082143]
[1748861255810,0.0201613,104370.0,104360.0,0.65082994]
[1748861256027,0.01058056,104370.0,104360.0,0.64185389]
[1748861256242,0.01058056,104370.0,104360.0,0.67551407]
[1748861256438,0.01058056,104370.0,104360.0,0.67551957]
[1748861256847,0.01058056,104370.0,104360.0,0.67551955]
[1748861257055,0.001,104370.0,104360.0,0.67551955]
[1748861257264,0.01058056,104370.0,104360.0,0.67551954]
[1748861257884,0.01058056,104370.0,104360.0,0.65756774]
[1748861258090,0.01058056,104370.0,104360.0,0.67552057]
[1748861258293,0.02016121,104370.0,104360.0,0.6598174]
[1748861258503,0.02016121,104370.0,104360.0,0.67777023]
[1748861258705,0.01058056,104370.0,104360.0,0.67777167]
[1748861258913,0.01058056,104370.0,104360.0,0.69348158]
[1748861259144,0.01058056,104370.0,104360.0,0.69348159]
[1748861259347,0.01058056,104370.0,104360.0,0.7087828]
[1748861260203,0.01058056,104370.0,104360.0,0.70205848]
[1748861260418,0.001,104370.0,104360.0,0.67512005]
[1748861260634,0.01058047,104370.0,104360.0,0.69308175]
[1748861260845,0.01058047,104370.0,104360.0,0.68410089]
[1748861261087,0.01058047,104370.0,104360.0,0.67512005]
[1748861261309,0.01058047,104370.0,104360.0,0.71104341]
[1748861261524,0.01058047,104370.0,104360.0,0.68410089]
[1748861261748,0.01058047,104370.0,104360.0,0.67512005]
[1748861262006,0.01058047,104370.0,104360.0,0.69308173]
[1748861262222,0.01058047,104370.0,104360.0,0.67512243]
[1748861262449,0.01058047,104370.0,104360.0,0.68185806]
[1748861262673,0.01058047,104370.0,104360.0,0.67512243]
[1748861262889,0.01058047,104370.0,104360.0,0.70206496]
[1748861263127,0.01058047,104370.0,104360.0,0.70880059]
[1748861263368,0.01058047,104370.0,104360.0,0.67512243]
[1748861264302,0.01058047,104370.0,104360.0,0.69308413]
[1748861264509,0.01058047,104370.0,104360.0,0.69083891]
[1748861264938,0.01058047,104370.0,104360.0,0.68410328]
[1748861265150,0.01058047,104370.0,104360.0,0.69308423]
[1748861265359,0.01058047,104370.0,104360.0,0.68410328]
[1748861265770,0.01058047,104370.0,104360.0,0.69083899]
[1748861266000,0.01058047,104370.0,104360.0,0.70206518]
[1748861266212,0.01058047,104370.0,104360.0,0.68410359]
[1748861266418,0.01058047,104370.0,104360.0,0.6908393]
[1748861266628,0.01058047,104370.0,104360.0,0.70206588]
[1748861266833,0.001,104370.0,104360.0,0.68410359]
[1748861267290,0.01058047,104370.0,104360.0,0.69982058]